[Event "10th Cherry Blossom Classic 2023"]
[Site "Dulles"]
[Date "2023.05.29"]
[Round "8.15"]
[White "Prabhu, Naveen"]
[Black "Ling, Evan"]
[Result "1-0"]
[ECO "C54"]
[WhiteElo "2138"]
[BlackElo "1952"]
[Annotator "TA"]
[PlyCount "121"]
[EventDate "2023.05.24"]
[EventType "swiss"]
[EventCountry "USA"]
[SourceTitle "playchess.com"]
[Source "ChessBase"]
[SourceQuality "1"]
[TimeControl "5400+30"]

{[%evp 9,121,15,17,14,16,26,27,26,21,22,27,0,12,12,16,-5,-12,-20,0,0,0,0,0,6,0,0,85,90,90,81,108,103,104,92,87,71,71,71,77,82,87,58,127,93,97,83,75,66,47,59,92,89,91,91,115,83,152,152,159,159,159,159,168,165,170,168,185,175,334,333,325,300,329,297,386,287,314,354,381,323,399,386,564,525,919,936,1280,1301,1126,1128,995,916,1514,1452,1317,858,1291,802,2188,1158,1711,1531,1549,1595,1929,924,2489,2282,29985,29986,29990,29991,29991,29992]} 1. e4 {[%emt 0:00:02]} e5 {[%emt 0:01:36]} 2. Nf3 {[%emt 0:00:07]} Nc6 {[%emt 0:00:16]} 3. Bc4 {[%emt 0:00:07]} Nf6 {[%emt 0:00:17]} 4. d3 {[%emt 0:00:14]} Bc5 {[%emt 0:00:32]} 5. c3 {[%emt 0:00:08]} d6 {[%emt 0:00:05]} ({Don't do} 5... d5 6. exd5 Nxd5 7. Qb3 $16) 6. a4 {[%emt 0:00:31] Black must now prevent b4. C54: Giuoco Piano: 4 c3 Nf6, main lines with 5 d4 and 5 d3.} a5 {[%emt 0:00:09]} 7. Bg5 {[%emt 0:00:35][%cal Bc1g5,Bg5h4,Bh4g3][%mdl 32]} h6 {[%emt 0:00:33]} 8. Bh4 {[%emt 1:32:46] White has an edge.} g5 {[%emt 0:01:34]} 9. Bg3 {[%emt 0:00:00]} Be6 {[%emt 0:01:11] [#]} 10. Bb5 $146 {[%emt 0:00:00]} ({Predecessor:} 10. Bxe6 fxe6 11. Nbd2 O-O 12. Qe2 Qd7 13. h4 g4 14. Nh2 Qg7 15. O-O Nh5 16. Kh1 Nxg3+ 17. fxg3 {½-½ Kosteniuk,A (2471)-Muzychuk,A (2535) Kosteniuk-Muzychuk Blitz m 2020 (18)}) 10... Ba7 {[%emt 0:01:54]} (10... O-O $5 {[%cal Rc6a7]}) 11. Nbd2 {[%emt 0:00:00]} O-O {[%emt 0:00:31]} 12. Bxc6 {[%emt 0:00:00]} bxc6 {[%emt 0:00:05]} 13. d4 {[%emt 0:00:00]} Nxe4 {[%emt 0:05:50]} 14. Nxe4 {[%emt 0:00:00]} f5 {[%emt 0:00:10]} 15. dxe5 {[%emt 0:00:00]} fxe4 {[%emt 0:02:39]} 16. Nd4 {[%emt 0:00:00]} Bxd4 {[%emt 0:06:28]} 17. Qxd4 {[%emt 0:00:00]} Bd5 {[%emt 0:25:12]} (17... d5 $11) 18. exd6 $16 {[%emt 0:00:00]} cxd6 {[%emt 0:00:41]} 19. c4 $36 {[%emt 0:00:00][%mdl 2048] Keeping Black busy.} Bf7 {[%emt 0:06:00]} 20. Bxd6 {[%emt 0:00:00] White is more active.} Re8 {[%emt 0:00:04] Black is weak on the dark squares} 21. O-O {[%emt 0:00:00]} c5 {[%emt 0:01:08]} 22. Qxc5 {[%emt 0:00:00] And now b3 would win.} (22. Bxc5 {simplifies} Qxd4 23. Bxd4 Bxc4 24. Rfe1) 22... Rc8 {[%emt 0:00:13]} 23. Qa3 {[%emt 0:00:00] Strongly threatening c5.} Bxc4 {[%emt 0:03:04]} 24. Rfe1 {[%emt 0:00:00]} (24. Rfc1 {is more complex.} Qb6 25. Rc3 Red8 26. Be5) 24... Qb6 {[%emt 0:04:01][%cal Oe4e3]} 25. Bg3 {[%emt 0:00:00]} Qb4 {[%emt 0:04:57]} (25... Bf7 $14) 26. Qe3 {[%emt 0:00:00]} Qc5 {[%emt 0:08:10]} 27. Qd2 {[%emt 0:00:00]} Qd5 {[%emt 0:26:40]} 28. Rad1 {[%emt 0:01:40]} Qxd2 {[%emt 0:00:00]} 29. Rxd2 {[%emt 0:00:01]} Red8 {[%emt 0:00:00] White leaves nothing to chance now.} 30. Rxd8+ {[%emt 0:01:17]} Rxd8 {[%emt 0:00:00][%mdl 4096] Endgame KRB-KRB} 31. h4 {[%emt 0:00:22]} (31. Rxe4 $2 {gets mated.} Rd1+) 31... gxh4 {[%emt 0:00:00]} 32. Bxh4 {[%emt 0:00:06]} Rb8 {[%emt 0:00:00]} ({Better is} 32... Re8) 33. Rxe4 {[%emt 0:02:45]} Rb4 {[%emt 0:00:00]} 34. Bd8 {[%emt 0:01:50]} Rxa4 {[%emt 0:00:00] [#]} 35. Bxa5 $1 {[%emt 0:00:18][%mdl 576] Deflection} Ra1+ {[%emt 0:00:00]} (35... Bb3 36. Re5) 36. Kh2 {[%emt 0:00:10]} Bd5 {[%emt 0:00:00]} 37. Rg4+ {[%emt 0:00:04]} Kf7 {[%emt 0:00:00]} 38. Bc3 {[%emt 0:00:09]} Rd1 $2 {[%emt 0:00:22]} (38... Ra6 39. Rg7+ Ke8) 39. Rg7+ $18 {[%emt 0:00:07]} Ke6 {[%emt 0:03:58]} 40. Rg6+ {[%emt 0:00:27]} Kf7 {[%emt 0:00:26]} 41. Rxh6 {[%emt 0:00:08]} Ra1 {[%emt 0:00:10]} 42. Kg3 {[%emt 0:00:22]} Rg1 {[%emt 0:00:22]} 43. f3 {[%emt 0:00:06]} Ra1 {[%emt 0:00:05]} 44. Rb6 {[%emt 0:00:31]} Be6 {[%emt 0:00:08]} 45. Kf4 {[%emt 0:00:09]} Bd7 {[%emt 0:00:53]} (45... Rf1 $142 46. Ke5 Ba2) 46. g4 {[%emt 0:00:34]} Ra4+ {[%emt 0:00:10]} 47. Kg5 {[%emt 0:00:47]} Rc4 {[%emt 0:00:09]} 48. f4 {[%emt 0:00:25]} Bc6 {[%emt 0:00:17]} 49. Rb4 {[%emt 0:00:22]} Rc5+ {[%emt 0:00:21]} 50. f5 {[%emt 0:00:05]} Bd7 {[%emt 0:00:22]} 51. Rb7 {[%emt 0:00:15]} Rd5 {[%emt 0:00:18]} 52. Rb6 {[%emt 0:00:14] [#] Rb7 is the strong threat.} Ke7 {[%emt 0:00:40]} 53. Rh6 {[%emt 0:00:19] Threatens to win with Kg6.} Bc8 {[%emt 0:00:15]} 54. Rh7+ {[%emt 0:00:11]} Ke8 {[%emt 0:00:17]} 55. Rh8+ {[%emt 0:02:52]} Kd7 {[%emt 0:00:03]} 56. Kf6 {[%emt 0:00:11]} Rd6+ {[%emt 0:00:10]} 57. Ke5 {[%emt 0:00:19][%cal Oh8c8] White wants to mate with Rxc8!} Rb6 {[%emt 0:00:06]} 58. f6 {[%emt 0:00:22][%cal Bf5f6,Bf6f7][%mdl 32] White threatens f7 and mate.} Rb5+ {[%emt 0:00:05]} 59. Kf4 {[%emt 0:00:06] White mates.} Rc5 {[%emt 0:00:59]} 60. f7 {[%emt 0:00:13]} Rc4+ {[%emt 0:00:07]} 61. Kg3 {[%emt 0:00:07] Weighted Error Value: White=0.09 (flawless) /Black=0.27 (precise)} 1-0

[Event "10th Cherry Blossom Classic 2023"]
[Site "Dulles"]
[Date "2023.05.29"]
[Round "8.16"]
[White "Ismayilova, Khanim"]
[Black "Ouellet, Maili-Jade"]
[Result "1-0"]
[ECO "E14"]
[WhiteElo "1562"]
[BlackElo "2246"]
[Annotator "TA"]
[PlyCount "67"]
[EventDate "2023.05.24"]
[EventType "swiss"]
[EventCountry "USA"]
[SourceTitle "playchess.com"]
[Source "ChessBase"]
[SourceQuality "1"]
[TimeControl "5400+30"]

{[%evp 13,67,-3,21,-7,8,0,2,6,6,10,381,389,381,364,387,389,387,391,408,412,563,562,560,536,839,843,828,818,814,810,802,802,885,877,966,754,941,939,1195,1068,887,868,825,818,912,912,1032,1037,939,939,29972,1366,1366,1345,1329,1285]} 1. c4 {[%emt 0:00:01]} e6 {[%emt 0:03:00]} 2. Nc3 {[%emt 0:00:07]} d5 {[%emt 0:00:07]} 3. e3 {[%emt 0:00:05]} Nf6 {[%emt 0:00:04]} 4. Nf3 {[%emt 0:00:06]} b6 {[%emt 0:00:05]} 5. d4 {[%emt 0:02:40]} Bb7 {[%emt 0:00:07]} 6. Bd3 {[%emt 0:02:04]} Nbd7 {[%emt 0:00:15]} 7. O-O {[%emt 0:01:52]} Bd6 {[%emt 0:00:23]} 8. Re1 {[%emt 0:05:52] E14: Queen's Indian: Classical Variation (4 e3).} O-O {[%emt 0:01:54]} 9. e4 {[%emt 0:03:12]} dxe4 {[%emt 0:01:32]} 10. Nxe4 {[%emt 0:00:10] The position is equal.} Nxe4 {[%emt 0:02:37]} 11. Bxe4 {[%emt 1:19:51] [#]} Nc5 $146 {[%emt 0:02:29][%mdl 8192]} ({Predecessor:} 11... Bxe4 12. Rxe4 Nf6 13. Bg5 h6 14. Bxf6 Qxf6 15. Qe2 Rad8 16. Rd1 Qf5 17. b3 Rd7 {½-½ Plat,V (2536)-Babula,V (2561) CZE-ch Zlin 2021 (7)}) 12. dxc5 $18 {[%emt 0:00:00]} Bxe4 {[%emt 0:03:34]} 13. cxd6 {[%emt 0:00:00]} Bxf3 {[%emt 0:00:26] Black is weak on the dark squares} 14. Qxf3 {[%emt 0:00:00]} ({Don't play} 14. gxf3 cxd6 15. Bf4 e5 $18) 14... Qxd6 {[%emt 0:00:06]} 15. Bf4 {[%emt 0:00:00]} Qc5 {[%emt 0:00:34]} 16. Qg3 {[%emt 0:00:00]} Qxc4 {[%emt 0:00:41]} 17. Bh6 {[%emt 0:00:00][%csl Gh6][%cal Rg3g7] [#]} Qd4 {[%emt 0:00:34]} 18. Re5 {[%emt 0:00:00]} Qxe5 {[%emt 0:00:32]} 19. Qxe5 {[%emt 0:00:00][%csl Gh6][%cal Re5g7]} gxh6 {[%emt 0:00:04]} 20. Qxc7 {[%emt 0:00:00]} Rfc8 {[%emt 0:00:14]} 21. Qg3+ {[%emt 0:00:00]} Kf8 {[%emt 0:00:18]} 22. h3 {[%emt 0:00:00]} Rd8 {[%emt 0:02:13]} 23. Rc1 {[%emt 0:00:00]} Rd7 {[%emt 0:00:12]} 24. Qf4 {[%emt 0:00:00]} Rad8 {[%emt 0:01:26]} 25. Qxh6+ {[%emt 0:00:00]} Kg8 {[%emt 0:00:05]} 26. Rc4 {[%emt 0:00:00] [#] Threatening mate with Rg4+.} Rd4 {[%emt 0:00:14]} 27. Rxd4 {[%emt 0:00:00]} Rxd4 {[%emt 0:00:02][%mdl 4096] Endgame KQ-KR} 28. Qf6 {[%emt 0:00:00]} Rd5 {[%emt 0:00:13]} 29. g4 {[%emt 0:00:00][%cal Bg2g4,Bg4g5][%mdl 32]} h5 {[%emt 0:00:27]} 30. g5 {[%emt 0:00:00]} Rf5 {[%emt 0:00:26]} 31. Qh6 {[%emt 0:00:00]} Rb5 {[%emt 0:00:53]} 32. Qxh5 {[%emt 0:00:00]} (32. g6 $142 fxg6 33. Qxg6+ Kh8 34. Qh6+ Kg8 35. Qxe6+ Kf8 36. Qd6+ Ke8 37. Qc6+ Kf8 38. Qxb5) 32... Ra5 {[%emt 0:01:20]} 33. a3 {[%emt 0:00:00] Strongly threatening Qh6.} Rb5 {[%emt 0:00:06]} 34. Qh6 {[%emt 0:00:00] Black got outplayed after the opening.   Weighted Error Value: White=0.06 (flawless) /Black=0.75} 1-0

[Event "10th Cherry Blossom Classic 2023"]
[Site "Dulles"]
[Date "2023.05.29"]
[Round "8.17"]
[White "Michelle Catherina, P."]
[Black "Laddha, Yash Jayesh"]
[Result "1-0"]
[ECO "C64"]
[WhiteElo "2193"]
[BlackElo "2195"]
[Annotator "TA"]
[PlyCount "103"]
[EventDate "2023.05.24"]
[EventType "swiss"]
[EventCountry "USA"]
[SourceTitle "playchess.com"]
[Source "ChessBase"]
[SourceQuality "1"]
[TimeControl "5400+30"]

{[%evp 10,103,85,29,36,43,56,18,34,16,30,-1085,-192,-827,15,26,30,39,63,0,0,2,4,0,31,0,20,13,31,17,58,0,45,-3,18,15,124,121,121,125,124,111,101,104,113,114,113,20,83,33,55,52,103,18,112,0,264,250,299,314,310,299,517,492,676,664,666,644,634,662,654,621,568,417,866,866,866,862,761,749,720,715,867,862,839,829,764,714,747,728,845,1054,897,878,1253,1120]} 1. e4 {[%emt 0:05:19]} e5 {[%emt 0:00:04]} 2. Nf3 {[%emt 0:00:13]} Nc6 {[%emt 0:00:04]} 3. Bb5 {[%emt 0:00:11]} a6 {[%emt 0:00:05]} 4. Ba4 {[%emt 0:00:08]} Bc5 {[%emt 0:00:05]} 5. O-O {[%emt 0:02:04]} Nge7 {[%emt 0:00:25] [#]} 6. c3 {[%emt 0:03:39]} (6. Nxe5 $1 $16 Nxe5 7. d4) 6... Ng6 $11 {[%emt 0:00:08] C64: Ruy Lopez: Classical Defence (3...Bc5) except 4 0-0 Nf6.} 7. d4 {[%emt 0:01:23]} Ba7 {[%emt 0:00:11]} 8. d5 {[%emt 0:10:36]} (8. Bg5 $5 {[%cal Rg5d8]} f6 9. Be3 $14) 8... Nce7 {[%emt 0:00:06] The position is equal.} 9. d6 {[%emt 0:00:57]} (9. h4 $5 {[%cal Rh4h5]} h5 10. d6 cxd6 11. Qxd6 $11) 9... cxd6 {[%emt 0:00:05][%cal Od6d5] [#]} 10. Qd4 $2 {[%mdl 8192]} d5 $2 (10... exd4 11. Nxd4 O-O) 11. Qxd5 $2 (11. Qd3) 11... Bb8 $2 (11... Nxd5 $19 12. exd5 O-O) 12. Qd3 O-O {[#]} 13. Bb3 $146 {[%mdl 2048] Black is under pressure.} ({Predecessor:} 13. c4 b5 14. cxb5 d5 15. exd5 Bf5 16. Qb3 e4 17. Nd4 Qd6 18. g3 Nh4 19. Bg5 Ba7 20. b6 {1-0 Dervishi,E (2511)-Lodici,L (2545) ITA-chT Final 53rd 2022 (1.4)}) 13... d5 14. Bxd5 {White is more active.} (14. exd5 $14 Bf5 15. Qd1) 14... Nxd5 15. Qxd5 Qxd5 16. exd5 e4 17. Nd4 Rd8 18. c4 Ne5 19. Na3 Nd3 20. b3 (20. Nac2 $14) 20... f5 21. f3 (21. Nac2 $14 {is superior.}) 21... Be5 (21... Ba7 $5 {[%cal Ra7d4]} 22. Nac2 exf3 $11) 22. Nac2 Nb4 23. Rb1 $16 Nd3 24. fxe4 fxe4 25. Bg5 Re8 26. Be3 Bg4 {[%cal Ob7b5]} 27. h3 Bd7 28. b4 ({White should try} 28. Ne2 $16) 28... a5 (28... Ba4 $11 {keeps the balance.}) 29. a3 (29. bxa5 $16 Rxa5 30. Rxb7) 29... axb4 $14 30. axb4 b6 (30... Ba4 $14) 31. Ra1 ({Better is} 31. Nc6 $16) 31... Bd6 {A strong pair of Bishops.} (31... Ra4 $11) 32. b5 (32. Nc6 $16) 32... Bc5 {[%mdl 8192] Black is now going downhill.} (32... Nb2 $11 {and Black has nothing to worry.}) 33. Nc6 Bxe3+ 34. Nxe3 h6 35. Ra6 Rxa6 (35... Nc5) 36. bxa6 $18 Bxc6 37. dxc6 {[%mdl 4096] Endgame KRN-KRN} Nb4 38. Rb1 Nxc6 39. Rxb6 Rc8 40. Nd5 {[%cal Ob6c6] Black must now prevent Rxc6!} Kh7 41. Rb5 {Hoping for Rc5.} Na7 (41... e3 $142 42. Nxe3 Ra8) 42. Rb7 {White is clearly winning.} Nc6 43. Nb6 Rd8 44. a7 Nxa7 45. Rxa7 {KRN-KR} Rd6 46. Nd5 Rc6 47. Ne3 Re6 48. Rf7 Kg6 49. Rf4 Kg5 50. Rf5+ Kg6 51. g4 Re8 {[%emt 0:21:00]} 52. Kf2 {[%emt 0:21:54] A brilliant game!   Weighted Error Value: White=0.63/Black=0.66} 1-0

[Event "10th Cherry Blossom Classic 2023"]
[Site "Dulles"]
[Date "2023.05.29"]
[Round "8.18"]
[White "ADU, Oladapo"]
[Black "Diao, Matthew Guo"]
[Result "1-0"]
[ECO "B45"]
[WhiteElo "2081"]
[BlackElo "1973"]
[Annotator "NA RC"]
[PlyCount "117"]
[EventDate "2023.05.24"]
[EventType "swiss"]
[EventCountry "USA"]
[SourceTitle "playchess.com"]
[Source "ChessBase"]
[SourceQuality "1"]
[TimeControl "5400+30"]

1. e4 {[%emt 0:08:05]} c5 {[%emt 0:00:10]} 2. Nf3 {[%emt 0:00:11]} Nc6 {[%emt 0:00:08]} 3. d4 {[%emt 0:00:22]} cxd4 {[%emt 0:00:06]} 4. Nxd4 {[%emt 0:00:06]} Nf6 {[%emt 0:00:10]} 5. Nc3 {[%emt 0:00:14]} e6 {[%emt 0:00:17]} 6. a3 {[%emt 0:00:39]} Be7 {[%emt 0:13:31]} 7. g3 {[%emt 0:02:12]} d5 {[%emt 0:07:42]} 8. Bg2 {[%emt 0:05:17]} O-O {[%emt 0:30:34]} 9. O-O {[%emt 0:02:38]} dxe4 {[%emt 0:07:43]} 10. Nxc6 {[%emt 0:00:53]} bxc6 {[%emt 0:00:09]} 11. Nxe4 {[%emt 0:00:37]} Ba6 {[%emt 0:07:18]} 12. Re1 {[%emt 0:00:18]} Nd5 {[%emt 0:00:10]} 13. h4 {[%emt 0:04:11]} h6 {[%emt 0:00:57]} 14. Bd2 {[%emt 0:03:45]} Qb6 {[%emt 0:02:32]} 15. Rb1 {[%emt 0:01:38]} Rae8 {[%emt 0:06:29]} 16. b4 {[%emt 0:05:19]} Bc4 {[%emt 0:12:33]} 17. Qf3 {[%emt 0:03:39]} f5 {[%emt 0:01:57]} 18. Nc3 {[%emt 0:00:11]} f4 {[%emt 0:01:26]} 19. Ne4 {[%emt 0:03:25]} e5 {[%emt 0:02:10]} 20. g4 {[%emt 0:02:07]} Qd8 {[%emt 0:01:24]} 21. h5 {[%emt 0:01:58]} Nf6 {[%emt 0:00:30]} 22. Nxf6+ {[%emt 0:02:55]} Rxf6 {[%emt 0:00:14]} 23. Qc3 {[%emt 0:01:12]} Bd5 {[%emt 0:01:10]} 24. Rxe5 {[%emt 0:01:04]} Bxg2 {[%emt 0:00:39]} 25. Kxg2 {[%emt 0:00:19]} f3+ {[%emt 0:00:33]} 26. Kh3 {[%emt 0:00:39]} Rd6 {[%emt 0:00:37]} 27. Bf4 {[%emt 0:00:45]} Rd1 {[%emt 0:00:59]} 28. Re1 {[%emt 0:02:30]} Rxb1 {[%emt 0:00:10]} 29. Rxb1 {[%emt 0:00:02]} Rf8 {[%emt 0:01:31]} 30. Qxf3 {[%emt 0:00:53]} Qd4 {[%emt 0:00:14]} 31. Qb3+ {[%emt 0:00:36]} Kh8 {[%emt 0:00:00]} 32. Bg3 {[%emt 0:00:44]} Bg5 {[%emt 0:01:18]} 33. Qd3 {[%emt 0:00:44]} Qf6 {[%emt 0:00:20]} 34. Re1 {[%emt 0:02:22]} Bf4 {[%emt 0:00:46]} 35. Qg6 {[%emt 0:00:27]} Qd4 {[%emt 0:00:45]} 36. Re8 {[%emt 0:00:24]} Rxe8 {[%emt 0:00:14]} 37. Qxe8+ {[%emt 0:00:17]} Kh7 {[%emt 0:00:01]} 38. Qg6+ {[%emt 0:00:35]} Kh8 {[%emt 0:00:10]} 39. Qxc6 {[%emt 0:02:05]} Bxg3 {[%emt 0:00:14]} 40. Kxg3 {[%emt 0:00:16]} Qe5+ {[%emt 0:00:38]} 41. Kg2 {[%emt 0:00:10]} Qd4 {[%emt 0:00:15]} 42. Qf3 {[%emt 0:00:13]} Qc4 {[%emt 0:00:46]} 43. c3 {[%emt 0:01:08]} a6 {[%emt 0:00:53]} 44. a4 {[%emt 0:00:54]} Qb3 {[%emt 0:01:14]} 45. Qa8+ {[%emt 0:03:04]} Kh7 {[%emt 0:00:01]} 46. Qxa6 {[%emt 0:00:21]} Qd5+ {[%emt 0:00:31]} 47. Kh2 {[%emt 0:00:18]} Qe5+ {[%emt 0:01:13]} 48. Kg1 {[%emt 0:01:37]} Qe1+ {[%emt 0:00:23]} 49. Qf1 {[%emt 0:00:02]} Qe4 {[%emt 0:00:37]} 50. Qd1 {[%emt 0:00:25]} Qc4 {[%emt 0:01:08]} 51. Qd4 {[%emt 0:00:48]} Qe6 {[%emt 0:00:00]} 52. b5 {[%emt 0:00:31]} Qe1+ {[%emt 0:00:19]} 53. Kg2 {[%emt 0:00:01]} Qe7 {[%emt 0:00:27]} 54. b6 {[%emt 0:00:09]} Qb7+ {[%emt 0:00:10]} 55. Kg1 {[%emt 0:00:18]} Qa6 {[%emt 0:00:36]} 56. Qe4+ {[%emt 0:00:16]} Kh8 {[%emt 0:00:07]} 57. b7 {[%emt 0:00:09]} Qd6 {[%emt 0:00:38]} 58. Qe8+ {[%emt 0:00:20]} Kh7 {[%emt 0:00:02]} 59. b8=Q {[%emt 0:00:18]} 1-0

[Event "10th Cherry Blossom Classic 2023"]
[Site "Dulles"]
[Date "2023.05.29"]
[Round "8.19"]
[White "Su, Kevin"]
[Black "Prem, Pranav"]
[Result "1/2-1/2"]
[ECO "B40"]
[WhiteElo "2038"]
[BlackElo "2061"]
[Annotator "TA"]
[PlyCount "100"]
[EventDate "2023.05.24"]
[EventType "swiss"]
[EventCountry "USA"]
[SourceTitle "playchess.com"]
[Source "ChessBase"]
[SourceQuality "1"]
[TimeControl "5400+30"]

{[%evp 16,100,43,35,44,52,65,12,19,20,14,27,27,18,18,7,19,-15,-10,-26,0,0,0,-16,-21,-16,-8,-28,-18,-16,-19,-13,-14,-9,0,0,0,0,0,0,0,0,0,0,0,0,0,0,0,0,0,0,0,0,0,0,0,0,0,0,0,0,0,0,0,0,0,0,0,0,0,0,0,0,0,-3,-9,-9,-9,-9,-9,-83,-83,-145,-144,-127,-100]} 1. e4 {[%emt 0:00:01]} c5 {[%emt 0:01:34]} 2. Nf3 {[%emt 0:00:18]} d6 {[%emt 0:00:07]} 3. d4 {[%emt 0:00:04]} cxd4 {[%emt 0:00:13]} 4. Nxd4 {[%emt 0:00:03]} Nf6 {[%emt 0:00:09]} 5. Bd3 {[%emt 0:00:03]} e6 {[%emt 0:04:01]} 6. c4 {[%emt 0:00:20]} Be7 {[%emt 0:00:28]} 7. O-O {[%emt 0:00:42]} O-O {[%emt 0:00:39]} 8. Nc3 {[%emt 0:02:11]} Nc6 {[%emt 0:03:53]} 9. Be3 {[%emt 0:00:58]} Nxd4 {[%emt 0:04:29] B40: Sicilian: 2...e6, Unusual lines.} 10. Bxd4 {[%emt 0:00:51] [#]} Qc7 $146 {[%emt 0:04:01]} ({Predecessor:} 10... b6 11. b3 Bb7 12. Rc1 e5 13. Be3 Bc8 14. Be2 Be6 15. f4 Ne8 16. f5 Bd7 17. Qe1 {1-0 Ulehla,J (1739)-Zacik,A (1912) SVK-chT2A 1920 2019 (8.6)}) 11. f4 {[%emt 0:10:23] White is more active.} ({White should play} 11. Qe2 $14) 11... e5 $11 {[%emt 0:03:49] The position is equal.} 12. Be3 {[%emt 0:00:54]} Ng4 {[%emt 0:05:17]} 13. Nd5 {[%emt 0:01:17]} Qd8 {[%emt 0:00:21]} 14. Bd2 {[%emt 0:02:11]} exf4 $1 {[%emt 0:00:25]} 15. Bxf4 {[%emt 0:02:04]} Bg5 {[%emt 0:03:56]} 16. Bg3 {[%emt 0:08:57]} (16. Be2 $5 {[%cal Re2g4]} Ne5 17. Bg3 $14) 16... Be6 {[%emt 0:07:02]} 17. Kh1 {[%emt 0:09:16]} Bxd5 {[%emt 0:06:21]} (17... Bh4 {is interesting.} 18. Qe1 Bxg3 19. Qxg3 Bxd5 20. exd5 Ne5) 18. Qxg4 {[%emt 0:01:24]} (18. exd5 Ne3 19. Qb3 (19. Qh5 g6 $17) 19... Nxf1 20. Rxf1 Qc7 $17) 18... Be6 {[%emt 0:00:01]} 19. Qf3 {[%emt 0:01:18]} (19. Qh5 $5) 19... Bf6 {[%emt 0:01:43]} 20. Rad1 {[%emt 0:01:30][%cal Oe4e5] [#] e5! would be deadly.} Qc7 {[%emt 0:11:46]} 21. b4 {[%emt 0:04:38]} Be5 {[%emt 0:03:19]} (21... b6 {with more complications.} 22. Be2 Rad8 23. Rxd6 Rxd6 24. e5 Rd1) 22. Rc1 {[%emt 0:01:37]} Rac8 {[%emt 0:05:00]} 23. Bxe5 {[%emt 0:07:21]} dxe5 {[%emt 0:00:46]} 24. c5 {[%emt 0:00:07][%cal Bc4c5,Bc5c6][%mdl 32]} Rfd8 {[%emt 0:09:30]} 25. Bc4 {[%emt 0:00:36]} Bxc4 {[%emt 0:03:51]} 26. Rxc4 {[%emt 0:00:02]} Rd2 {[%emt 0:00:02]} 27. c6 {[%emt 0:03:03] Threatening mate with cxb7.} Rcd8 {[%emt 0:05:57]} (27... Rxa2 {is a self mate.} 28. cxb7 Rf8 29. Rxc7 h5 30. b8=Q) (27... bxc6 $2 28. Rxc6 h6 29. Rxc7 $18 (29. Qxf7+ $2 Qxf7 30. Rxc8+ Kh7 $19)) 28. b5 {[%emt 0:02:18]} Rxa2 {[%emt 0:03:57]} 29. Rc5 {[%emt 0:01:45]} h6 {[%emt 0:02:03]} 30. Rd5 {[%emt 0:02:02] Strongly threatening Rxd8+.} Rd2 $1 {[%emt 0:04:28]} (30... bxc6 $2 31. Rxd8+ Qxd8 32. Qxf7+ Kh7 33. Qxa2 $18) 31. h3 {[%emt 0:05:05]} bxc6 {[%emt 0:02:21]} 32. bxc6 {[%emt 0:00:36]} Qxc6 {[%emt 0:01:06] Threatens to win with ...Qc7.} 33. Qxf7+ {[%emt 0:00:30]} (33. Rxd8+ {simplifies} Rxd8 34. Qxf7+ Kh7 35. Qf5+) 33... Kh7 {[%emt 0:00:14][%cal Rd8d5]} 34. Rxe5 {[%emt 0:02:37]} ({Reject} 34. Qxa7 R8xd5 35. exd5 Qxd5 $17) 34... Qg6 {[%emt 0:00:42]} 35. Qxg6+ {[%emt 0:02:41]} Kxg6 {[%emt 0:00:02][%mdl 4096] Endgame KRR-KRR} 36. Re6+ {[%emt 0:00:07]} Kh7 {[%emt 0:00:05]} 37. Rf4 {[%emt 0:01:31]} R8d7 {[%emt 0:01:18]} 38. h4 {[%emt 0:02:03]} R2d6 {[%emt 0:01:10]} 39. Re5 {[%emt 0:01:23]} Rg6 {[%emt 0:00:27]} 40. h5 {[%emt 0:08:49]} Rg5 {[%emt 0:00:16]} 41. Rxg5 {[%emt 0:00:41]} hxg5 {[%emt 0:00:02] KR-KR} 42. Rf5 {[%emt 0:00:08]} Rd4 {[%emt 0:00:03]} 43. e5 {[%emt 0:03:52]} Kh6 {[%emt 0:00:51]} 44. e6 {[%emt 0:02:27]} Re4 {[%emt 0:04:45]} 45. g4 {[%emt 0:00:05]} Rxe6 {[%emt 0:00:00]} 46. Rf8 $1 {[%emt 0:00:07][%cal Rf8h8]} g6 {[%emt 0:00:00]} 47. hxg6 {[%emt 0:00:57]} Kxg6 {[%emt 0:00:00] White should prevent ...Re2.} 48. Kg2 {[%emt 0:00:06]} (48. Rg8+ $11 Kh6 49. Ra8) 48... a5 $17 {[%emt 0:00:00] ...Ra6 is the strong threat.} 49. Ra8 {[%emt 0:00:07] Dodges Ra6} (49. Rg8+ $142 Kh6 50. Rh8+ Kg7 51. Ra8) 49... Re2+ {[%emt 0:00:00]} 50. Kf3 {[%emt 0:00:05] [#]} Re5 $1 {[%emt 0:00:00] Weighted Error Value: White=0.09 (flawless) /Black=0.02 (flawless)} 1/2-1/2